bitfinex/quotes_SOLUSD_20241110
["timestamp","ask_amount","ask_price","bid_price","bid_amount"]
[1731215285778,33.26827918,206.86,206.85,11.27885507]
[1731215285983,33.26827918,206.86,206.85,4.858]
[1731215286482,33.26827918,206.86,206.85,11.74685507]
[1731215286860,33.26827918,206.86,206.8,4.858]
[1731215287060,33.26827918,206.88,206.82,4.858]
[1731215287276,33.26827918,206.88,206.84,4.858]
[1731215287480,33.26827918,206.85,206.84,11.23335507]
[1731215287670,33.26827918,206.85,206.84,4.858]
[1731215287872,33.26827918,206.85,206.84,11.23335507]
[1731215288069,33.26827918,206.85,206.84,4.858]
[1731215289163,33.26827918,206.87,206.84,4.858]
[1731215289371,33.26827918,207.0,206.85,4.858]
[1731215289372,33.26827918,206.89,206.85,4.858]
[1731215289759,33.26827918,206.91,206.87,4.858]
[1731215289990,6.3074,207.11,206.81,33.26827918]
[1731215289991,0.1,207.16,206.95,4.958]
[1731215290290,33.26827918,207.19,207.11,4.858]
[1731215290788,33.26827918,207.17,207.13,4.858]
[1731215291084,33.26827918,207.15,207.13,4.858]
[1731215291378,33.26827918,207.15,207.1,5.79881967]
[1731215291585,33.26827918,207.17,207.11,4.858]
[1731215291888,33.26827918,207.17,207.11,14.79989839]
[1731215292082,33.26827918,207.17,207.12,6.54559745]
[1731215292379,7.99202377,207.22,207.13,4.858]
[1731215292380,33.26827918,207.14,207.13,4.858]
[1731215293175,33.26827918,207.14,207.05,4.858]
[1731215293377,33.26827918,207.09,207.05,4.858]
[1731215293581,7.99202377,207.22,207.05,4.858]
[1731215293885,7.99202377,207.22,207.06,43.79054062]
[1731215294195,33.26827918,207.15,207.07,4.858]
[1731215294491,33.26827918,207.13,207.09,4.858]
[1731215294685,33.26827918,207.11,207.09,4.858]
[1731215295193,33.26827918,207.2,207.1,3.73863428]
[1731215295194,33.26827918,207.13,207.1,3.73863428]
[1731215295483,33.26827918,207.11,207.1,5.98139745]
[1731215295687,33.26827918,207.12,207.1,3.73863428]
[1731215295872,33.26827918,207.12,206.98,3.14470713]
[1731215296180,7.99202377,207.22,206.99,0.96569307]
[1731215296383,33.26827918,207.16,207.08,4.858]
[1731215296569,33.26827918,207.1,207.06,6.0774243]
[1731215296767,33.26827918,207.08,206.99,33.26827918]
[1731215296970,33.26827918,207.1,207.01,33.26827918]
[1731215297264,33.26827918,207.1,207.02,5.93965859]
[1731215297482,33.26827918,207.08,207.02,5.93965859]
[1731215298087,33.26827918,207.1,207.03,4.61834066]
[1731215298262,33.26827918,207.1,207.04,6.25599192]
[1731215298664,7.99202377,207.22,207.09,33.26827918]
[1731215298878,33.26827918,207.2,207.1,40.59641889]
[1731215299093,33.26827918,207.16,207.1,11.06677399]
[1731215299384,33.26827918,207.11,207.0,5.058]
[1731215299585,33.26827918,207.11,207.04,4.858]
[1731215299772,7.99202377,207.22,207.06,4.858]
[1731215299976,33.26827918,207.15,207.07,3.73863428]
[1731215300167,33.26827918,207.15,207.08,6.40014748]
[1731215300365,33.26827918,207.13,207.08,4.858]
[1731215300585,33.26827918,207.13,207.06,0.96535657]
[1731215300586,33.26827918,207.11,207.02,0.96540515]
[1731215300771,33.26827918,207.03,206.95,33.26827918]
[1731215300972,33.26827918,207.03,206.93,33.26827918]
[1731215301175,33.26827918,207.03,206.95,33.26827918]
[1731215301374,33.26827918,207.0,206.96,3.73863428]
[1731215301686,33.26827918,207.0,206.86,0.1]
[1731215301687,33.26827918,207.0,206.91,4.858]
[1731215301902,33.26827918,207.0,206.93,4.858]
[1731215302269,33.26827918,206.98,206.93,5.69215303]
[1731215302671,33.26827918,206.96,206.86,33.26827918]
[1731215302865,33.26827918,206.94,206.87,0.966253]
[1731215303083,33.26827918,206.94,206.88,5.69215303]
[1731215303389,33.26827918,206.9,206.83,0.96629884]
[1731215303573,33.26827918,206.92,206.86,4.858]
[1731215303775,33.26827918,206.92,206.87,5.69215303]
[1731215303970,33.26827918,206.94,206.87,5.69215303]
[1731215304370,15.6243,207.09,206.87,5.69215303]
[1731215304371,33.26827918,206.96,206.88,25.72261369]
[1731215304677,33.26827918,206.96,206.89,10.88020859]
[1731215304987,33.26827918,206.94,206.89,10.88020859]
[1731215305370,33.26827918,206.94,206.89,6.02220859]
[1731215305586,33.26827918,206.96,206.89,6.02220859]
[1731215305773,33.26827918,206.96,206.89,6.98838408]
[1731215305973,33.26827918,206.98,206.9,4.858]
[1731215306375,33.26827918,206.96,206.9,4.858]
[1731215306577,33.26827918,206.98,206.9,10.88020859]
[1731215306776,33.26827918,206.98,206.91,10.88020859]
[1731215306979,33.26827918,207.04,206.95,33.26827918]
[1731215307192,15.6243,207.09,206.97,38.12627918]
[1731215307391,33.26827918,207.04,206.97,4.858]
[1731215307594,15.6243,207.09,206.93,33.26827918]
[1731215307595,33.26827918,207.02,206.93,33.26827918]
[1731215307974,33.26827918,207.0,206.94,6.02220859]
[1731215308189,33.26827918,207.0,206.87,1.06603776]
[1731215308190,33.26827918,207.0,206.91,33.26827918]
[1731215308487,33.26827918,207.02,206.92,6.02220859]
[1731215308990,33.26827918,207.0,206.91,33.26827918]
[1731215309195,33.26827918,207.0,206.91,39.29048777]
[1731215309383,33.26827918,207.02,206.93,33.26827918]
[1731215309569,33.26827918,207.02,206.93,39.29048777]
[1731215309769,15.6243,207.09,206.9,4.858]
[1731215309770,33.26827918,206.98,206.9,4.858]
[1731215309970,33.26827918,207.02,206.93,33.26827918]
[1731215310169,33.26827918,206.96,206.87,33.26827918]
[1731215310395,33.26827918,206.9,206.82,24.16462783]
[1731215310979,33.26827918,206.9,206.83,29.12]
[1731215311578,33.26827918,206.92,206.83,29.12]
[1731215311783,33.26827918,206.92,206.83,62.38827918]
[1731215312180,33.26827918,206.92,206.83,33.26827918]
[1731215312491,33.26827918,207.0,206.83,4.858]
[1731215312691,33.26827918,206.89,206.83,4.858]
[1731215312990,33.26827918,206.86,206.83,4.858]
[1731215313381,33.26827918,206.88,206.84,4.858]
[1731215313594,33.26827918,206.92,206.84,4.858]
[1731215313797,33.26827918,206.92,206.84,29.60436629]
[1731215313983,33.26827918,206.88,206.84,4.858]
[1731215314186,33.26827918,206.86,206.84,4.858]
[1731215314386,33.26827918,206.86,206.79,4.858]
[1731215314999,33.26827918,206.84,206.79,4.858]
[1731215315384,33.26827918,206.82,206.75,4.858]
[1731215316393,33.26827918,206.9,206.82,4.858]
[1731215316596,33.26827918,206.84,206.82,4.858]
[1731215317384,33.26827918,206.86,206.83,4.858]
[1731215317578,33.26827918,206.88,206.84,4.858]
[1731215317786,33.26827918,206.86,206.66,0.1]
[1731215317984,33.26827918,206.77,206.7,24.44456485]
[1731215318395,33.26827918,206.75,206.66,24.59363302]
[1731215318602,33.26827918,206.73,206.67,4.858]
[1731215319099,33.26827918,206.77,206.71,4.858]
[1731215319603,33.26827918,206.81,206.73,4.858]
[1731215320297,0.1,206.96,206.72,24.46573892]
[1731215320298,16.5864,206.99,206.8,4.858]
[1731215320508,33.26827918,206.9,206.83,4.858]
[1731215320681,33.26827918,206.85,206.79,1.0]
[1731215320883,33.26827918,206.82,206.79,1.0]
[1731215321184,33.26827918,206.84,206.79,1.0]
[1731215321780,33.26827918,206.82,206.8,4.858]
[1731215321980,33.26827918,206.84,206.8,4.858]
[1731215322780,20.0,206.98,206.8,4.858]
[1731215322982,33.26827918,206.86,206.8,4.858]
[1731215323684,16.6864,206.99,206.82,4.858]
[1731215323685,33.26827918,206.9,206.82,4.858]
[1731215323889,33.26827918,206.88,206.84,4.858]
[1731215324097,33.26827918,206.86,206.84,4.858]
[1731215324680,33.26827918,206.86,206.8,4.858]
[1731215325882,0.2,206.97,206.8,4.858]
[1731215326101,33.26827918,206.86,206.8,4.858]
[1731215326291,33.26827918,206.88,206.79,34.26827918]
[1731215326486,33.26827918,206.88,206.8,4.858]
[1731215328593,33.26827918,206.83,206.8,4.858]
[1731215328906,33.26827918,206.86,206.8,4.858]
[1731215331308,33.26827918,206.87,206.8,4.858]
[1731215332413,0.83998573,207.0,206.9,0.1]
[1731215332709,24.49131789,207.21,206.9,0.1]
[1731215332710,33.26827918,207.1,207.0,33.978]
[1731215332890,33.26827918,207.08,207.02,4.858]
[1731215333093,5.43312377,207.22,207.08,4.858]
[1731215333395,33.26827918,207.15,207.08,4.858]
[1731215333696,33.26827918,207.11,207.08,4.858]
[1731215334200,33.26827918,207.09,207.0,4.858]
[1731215334393,33.26827918,207.07,207.0,4.858]
[1731215334799,33.26827918,207.06,207.0,4.70445528]
[1731215335003,33.26827918,207.06,207.01,4.858]
[1731215335511,33.26827918,207.04,207.01,4.858]
[1731215335814,33.26827918,207.04,206.97,28.93]
[1731215335815,0.1,207.2,207.04,4.858]
[1731215336016,5.43312377,207.22,207.05,42.05918811]
[1731215336191,33.26827918,207.07,206.93,0.1]
[1731215336504,33.26827918,207.04,206.94,0.96564177]
[1731215336723,33.26827918,207.06,206.94,58.59802463]
[1731215336929,33.26827918,207.06,206.94,64.93676468]
[1731215337226,33.26827918,207.06,207.0,4.858]
[1731215337395,33.26827918,207.04,206.94,0.96564177]
[1731215337591,33.26827918,207.04,206.95,33.26827918]
[1731215337799,33.26827918,207.02,206.96,0.96588641]
[1731215338093,33.26827918,207.02,206.94,4.858]
[1731215338504,1.927988,207.07,206.93,0.96595574]
[1731215338505,33.26827918,207.0,206.93,0.96595574]
[1731215338707,33.26827918,207.0,206.92,4.858]
[1731215339914,33.26827918,207.04,206.94,33.26827918]
[1731215340120,33.26827918,207.04,206.95,5.8239323]
[1731215340599,33.26827918,207.04,206.95,34.7539323]
[1731215341002,33.26827918,207.02,206.95,5.8239323]
[1731215341215,33.26827918,207.02,206.92,0.96598074]
[1731215341417,33.26827918,207.02,206.95,4.858]
[1731215341639,33.26827918,207.04,206.96,0.96594862]
[1731215341959,33.26827918,207.04,206.96,34.2342278]
[1731215342095,33.26827918,207.04,206.96,29.89594862]
[1731215342300,33.26827918,207.04,206.96,0.96594862]
[1731215342498,33.26827918,207.02,206.95,0.96592064]
[1731215342801,33.26827918,207.02,206.94,38.12627918]
[1731215343140,33.26827918,206.98,206.91,33.26827918]
[1731215343344,33.26827918,206.98,206.92,4.858]
[1731215343618,33.26827918,206.98,206.9,0.96619408]
[1731215343800,1.927988,207.07,206.95,33.26827918]
[1731215344006,33.26827918,207.04,206.95,0.96603434]
[1731215344203,33.26827918,206.98,206.9,0.96596806]
[1731215344408,1.927988,207.07,207.02,0.1]
[1731215344607,33.26827918,207.15,207.04,28.93]
[1731215344811,6.2602,207.37,207.03,17.08201514]
[1731215344812,33.26827918,207.07,207.03,9.27246383]
[1731215345014,33.26827918,207.05,206.96,6.8442956]
[1731215345224,33.26827918,207.03,206.96,4.818]
[1731215345821,33.26827918,207.06,206.98,4.818]
[1731215346131,33.26827918,207.08,207.0,4.818]
[1731215346348,33.26827918,207.1,207.02,4.818]
[1731215346633,33.26827918,207.1,207.04,4.818]
[1731215347054,33.26827918,207.12,207.06,4.818]
[1731215347345,33.26827918,207.12,207.07,6.68731714]
[1731215347512,33.26827918,207.2,207.07,6.68731714]
[1731215347513,33.26827918,207.1,207.07,4.818]
[1731215347716,5.43312377,207.22,207.11,4.818]
[1731215348018,33.26827918,207.15,207.13,4.818]
[1731215348329,33.26827918,207.19,207.13,11.72007338]
[1731215348639,33.26827918,207.17,207.13,11.72007338]
[1731215348927,5.43312377,207.22,207.1,3.73863428]
[1731215348928,33.26827918,207.15,207.11,4.818]
[1731215349532,33.26827918,207.13,207.11,4.818]
[1731215349913,33.26827918,207.13,207.07,4.818]
[1731215350113,33.26827918,207.08,207.07,4.818]
[1731215350913,5.43312377,207.22,207.08,0.1]
[1731215351113,38.70140295,207.22,207.14,4.818]
[1731215351318,5.43312377,207.22,207.14,33.748]
[1731215351518,5.11176295,207.22,207.21,33.748]
[1731215351733,5.11176295,207.22,207.21,12.52932338]
[1731215351919,5.11176295,207.22,207.21,4.818]
[1731215352115,38.38004213,207.22,207.21,4.818]
[1731215352432,5.11176295,207.22,207.16,62.19827918]
[1731215352625,5.11176295,207.22,207.17,6.35323298]
[1731215352936,5.11176295,207.22,207.17,0.96493121]
[1731215353537,5.11176295,207.22,207.2,4.818]
[1731215353834,5.11176295,207.22,207.21,9.61492052]
[1731215354014,5.11176295,207.22,207.21,5.92109072]
[1731215354329,5.11176295,207.22,207.16,33.26827918]
[1731215354533,5.11176295,207.22,207.17,5.78279228]
[1731215354836,33.26827918,207.21,207.12,33.26827918]
[1731215355037,33.26827918,207.21,207.13,0.96496064]
[1731215355237,5.11176295,207.22,207.13,0.96496064]
[1731215355536,5.11176295,207.22,207.14,8.4118298]
[1731215355737,5.11176295,207.22,207.16,4.818]
[1731215356136,33.26827918,207.21,207.18,4.818]
[1731215356633,38.38004213,207.22,207.18,8.4118298]
[1731215357346,38.38004213,207.22,207.18,4.818]
[1731215357539,33.26827918,207.2,207.18,4.818]
[1731215357923,66.53655836,207.2,207.13,4.818]
[1731215358126,33.26827918,207.15,207.13,4.818]
[1731215358336,33.26827918,207.15,207.09,4.818]
[1731215358541,33.26827918,207.15,207.1,0.96527187]
[1731215358837,5.21176295,207.22,207.12,33.26827918]
[1731215358838,33.26827918,207.21,207.12,33.26827918]
[1731215359137,5.11176295,207.22,207.15,4.818]
[1731215359317,5.11176295,207.22,207.17,4.818]
[1731215359523,5.11176295,207.22,207.18,0.9649394]
[1731215359725,5.11176295,207.22,207.14,34.23311894]
[1731215359922,5.11176295,207.22,207.15,4.818]
[1731215360327,5.11176295,207.22,207.08,4.818]
[1731215360522,5.11176295,207.22,207.1,4.818]
[1731215360828,5.11176295,207.22,207.14,4.818]
[1731215361034,33.26827918,207.15,207.02,0.96505019]
[1731215361234,33.26827918,207.08,207.02,0.96505019]
[1731215361539,33.26827918,207.2,207.02,0.96505019]
[1731215361540,33.26827918,207.1,207.03,6.31575459]
[1731215361848,33.26827918,207.1,207.04,0.96526919]
[1731215362140,33.26827918,207.1,207.05,4.818]
[1731215362340,33.26827918,207.2,207.05,4.818]
[1731215362542,33.26827918,207.09,207.05,4.818]
[1731215362848,5.11176295,207.22,207.1,4.818]
[1731215363026,33.26827918,207.2,207.18,4.818]
[1731215363224,33.26827918,207.2,207.11,0.96470413]
[1731215363425,33.26827918,207.15,207.11,0.96470413]
[1731215363724,33.26827918,207.17,207.09,33.26827918]
[1731215363939,5.11176295,207.22,207.17,28.93]
[1731215364239,5.11176295,207.22,207.19,4.818]
[1731215364474,38.38004213,207.22,207.19,4.818]
[1731215364643,5.11176295,207.22,207.19,33.748]
[1731215364945,5.11176295,207.22,207.19,41.22314894]
[1731215365145,5.11176295,207.22,207.19,7.47514894]
[1731215365326,5.11176295,207.22,207.15,0.96480077]
[1731215365526,0.1,207.5,207.25,0.1]
[1731215365736,33.26827918,207.34,207.26,0.96408739]
[1731215366042,33.26827918,207.28,207.25,1.10287782]
[1731215366339,3.19198984,207.49,207.23,4.818]
[1731215366552,0.1,207.46,207.25,4.818]
[1731215366724,0.1,207.46,207.26,0.96428973]
[1731215366924,3.19199,207.37,207.26,0.96428973]
[1731215367124,33.26827918,207.29,207.26,0.96428973]
[1731215367324,3.19199,207.37,207.25,12.93592671]
[1731215367535,33.26827918,207.34,207.27,12.93592671]
[1731215367737,3.19199,207.37,207.29,4.818]
[1731215367936,33.26827918,207.33,207.31,4.818]
[1731215368940,33.26827918,207.33,207.26,28.93]
[1731215369144,33.26827918,207.3,207.27,3.818]
[1731215369451,33.26827918,207.28,207.24,29.89443511]
[1731215369634,3.19199,207.37,207.25,4.818]
[1731215369635,33.26827918,207.26,207.25,4.818]
[1731215369829,33.26827918,207.26,207.25,11.91737116]
[1731215370149,33.26827918,207.26,207.21,0.96464581]
[1731215370332,33.26827918,207.3,207.12,0.1]
[1731215370333,33.26827918,207.22,207.19,7.59937116]
[1731215370525,33.26827918,207.3,207.19,7.59937116]
[1731215370526,33.26827918,207.2,207.19,12.41737116]
[1731215370722,3.19199,207.37,207.22,0.16135355]
[1731215370933,33.26827918,207.3,207.24,4.818]
[1731215371134,33.26827918,207.3,207.26,4.318]
[1731215371347,3.19199,207.37,207.27,32.748]
[1731215371644,33.26827918,207.31,207.29,3.818]
[1731215371828,33.26827918,207.3,207.26,4.818]
[1731215372156,33.26827918,207.27,207.26,4.818]
[1731215372443,0.02,207.38,207.28,4.818]
[1731215372635,33.26827918,207.29,207.28,5.78223973]
[1731215372826,33.26827918,207.29,207.28,4.818]
[1731215373331,33.26827918,207.29,207.28,12.01067338]
[1731215373643,33.26827918,207.29,207.28,4.818]
[1731215374222,33.26827918,207.29,207.23,33.748]
[1731215374429,33.26827918,207.3,207.25,33.748]
[1731215374627,0.02,207.38,207.29,33.748]
[1731215374628,33.26827918,207.32,207.29,33.748]
[1731215374831,33.26827918,207.32,207.29,12.23384005]
[1731215375027,33.26827918,207.32,207.31,4.818]
[1731215375343,33.26827918,207.32,207.31,33.748]
[1731215375652,33.26827918,207.36,207.31,41.16384005]
[1731215375853,33.26827918,207.36,207.34,4.818]
[1731215376033,33.26827918,207.36,207.3,1.06412172]
[1731215376034,33.26827918,207.36,207.35,41.52495116]
[1731215376230,33.26827918,207.36,207.32,28.93]
[1731215376431,0.02,207.38,207.35,0.1]
[1731215376754,0.02,207.38,207.37,4.818]
[1731215377052,0.02,207.38,207.37,12.4286956]
[1731215377235,0.02,207.38,207.37,41.3586956]
[1731215377433,32.95438383,207.38,207.37,41.3586956]
[1731215377940,32.95438383,207.38,207.37,4.818]
[1731215378338,32.95438383,207.38,207.28,28.93]
[1731215378530,32.93438383,207.33,207.29,0.96431401]
[1731215378730,32.93438383,207.31,207.29,7.6106956]
[1731215379038,32.93438383,207.3,207.24,0.96431784]
[1731215379432,32.93438383,207.3,207.25,33.748]
[1731215379755,32.93438383,207.3,207.27,4.818]
[1731215380137,32.63973032,207.3,207.27,4.818]
[1731215380335,32.63973032,207.28,207.27,12.4286956]
[1731215380550,32.63973032,207.28,207.27,4.818]
[1731215380852,32.63973032,207.28,207.21,4.818]
[1731215381035,32.63973032,207.22,207.21,4.818]
[1731215381838,32.63973032,207.22,207.06,24.85519435]
[1731215381839,32.63973032,207.22,207.15,4.818]
[1731215382042,32.63973032,207.16,207.15,4.818]
[1731215382443,32.63973032,207.16,207.04,4.818]
[1731215382655,32.63973032,207.16,207.03,0.96527295]
[1731215382656,32.63973032,207.12,207.06,4.818]
[1731215383035,32.63973032,207.1,207.06,4.818]
[1731215383656,32.63973032,207.1,207.06,5.78335445]
[1731215384461,0.1,207.24,207.06,12.01592744]
[1731215384655,32.63973032,207.11,207.07,11.05057299]
[1731215385748,32.63973032,207.13,207.08,0.9653479]
[1731215385943,32.63973032,207.13,207.09,6.23257299]
[1731215386370,32.63973032,207.11,207.09,6.23257299]
[1731215386669,32.63973032,207.11,206.97,0.1]
[1731215386670,32.63973032,207.11,207.03,0.96534332]
[1731215386877,32.63973032,207.07,207.04,10.6695562]
[1731215387042,32.63973032,207.05,206.97,5.8515562]
[1731215387351,32.63973032,207.03,206.98,0.96573765]
[1731215387549,32.63973032,207.03,206.99,5.8515562]
[1731215387755,32.63973032,207.1,206.99,5.8515562]
[1731215387756,32.63973032,207.11,207.01,4.818]
[1731215387960,32.63973032,207.07,207.03,4.818]
[1731215388149,32.63973032,207.05,207.03,6.42933398]
[1731215388351,32.63973032,207.05,207.04,6.42933398]
[1731215388951,65.27946064,207.05,206.89,6.42933398]
[1731215389168,32.63973032,206.94,206.9,0.96592903]
[1731215389368,32.63973032,206.92,206.88,6.42933398]
[1731215389584,32.63973032,206.9,206.81,6.42933398]
[1731215389869,32.63973032,206.87,206.81,11.24733398]
[1731215390064,32.63973032,206.83,206.77,0.1]
[1731215390253,32.63973032,206.81,206.77,0.1]
[1731215390454,32.63973032,206.81,206.8,6.42933398]
[1731215390863,32.63973032,206.83,206.8,6.42933398]
[1731215391277,32.63973032,206.81,206.76,4.918]
[1731215391467,32.63973032,206.81,206.79,7.42933398]
[1731215391774,32.63973032,206.87,206.8,35.2750891]
[1731215391959,32.63973032,206.87,206.81,5.78447099]
[1731215392161,32.63973032,206.87,206.81,12.21380497]
[1731215392465,6.1952,206.98,206.79,1.0]
[1731215392466,20.0,206.97,206.83,4.818]
[1731215392652,32.63973032,206.85,206.83,11.24733398]
[1731215393657,32.63973032,206.87,206.85,4.818]
[1731215393962,32.63973032,206.87,206.86,11.24733398]
[1731215394556,32.63973032,206.88,206.86,11.24733398]
[1731215394757,32.63973032,206.88,206.79,1.0]
[1731215394971,32.63973032,206.82,206.79,1.0]
[1731215395179,32.63973032,206.8,206.79,1.0]
[1731215395646,32.63973032,206.82,206.8,4.818]
[1731215396568,32.63973032,206.82,206.79,1.0]
[1731215396752,32.63973032,206.8,206.79,5.818]
[1731215397147,0.1,206.89,206.79,5.818]
[1731215397148,20.1,206.89,206.79,5.818]
[1731215397458,32.63973032,206.82,206.79,1.0]
[1731215397665,32.63973032,206.9,206.79,5.818]
[1731215397666,32.63973032,206.8,206.79,5.818]
[1731215397874,65.27946064,206.8,206.79,5.818]
[1731215398363,32.63973032,206.8,206.79,5.818]
[1731215398677,65.27946064,206.8,206.79,5.818]
[1731215398854,32.63973032,206.8,206.79,5.818]
[1731215400068,32.63973032,206.82,206.79,5.818]
[1731215400377,32.63973032,206.84,206.79,1.0]
[1731215400955,32.63973032,206.82,206.79,1.0]
[1731215401148,32.63973032,206.8,206.79,1.0]
[1731215401858,32.63973032,206.84,206.79,1.0]
[1731215402177,32.63973032,206.86,206.8,4.818]
[1731215403155,32.63973032,206.88,206.8,11.53622287]
[1731215403356,6.1952,206.98,206.79,1.0]
[1731215403357,6.0952,206.98,206.82,4.818]
[1731215403576,32.63973032,206.91,206.84,4.818]
[1731215403758,32.63973032,206.87,206.8,4.818]
[1731215404073,32.63973032,206.89,206.82,4.818]
[1731215404374,32.63973032,206.91,206.84,4.818]
[1731215404556,32.63973032,206.9,206.85,6.6548168]
[1731215404756,32.63973032,206.86,206.8,4.818]
[1731215404963,32.63973032,206.81,206.8,4.818]
[1731215405166,32.63973032,206.81,206.79,1.0]
[1731215405972,32.63973032,206.81,206.8,4.818]
[1731215406553,31.63973032,206.81,206.8,4.818]
[1731215407360,26.81873032,206.81,206.8,4.818]
[1731215407558,32.63973032,206.81,206.8,4.818]
[1731215407758,32.63973032,206.81,206.79,1.0]
[1731215408689,6.0952,206.98,206.8,4.818]
[1731215408981,32.63973032,206.9,206.81,0.96648259]
[1731215409282,6.0952,206.98,206.79,1.0]
[1731215409283,32.63973032,206.87,206.82,6.29370569]
[1731215409579,32.63973032,206.89,206.82,6.29370569]
[1731215409870,32.63973032,206.89,206.84,4.818]
[1731215410081,32.63973032,206.87,206.84,4.818]
[1731215410878,32.63973032,206.89,206.81,4.818]
[1731215411053,32.63973032,206.91,206.85,4.818]
[1731215411263,32.63973032,206.91,206.85,11.11170569]
[1731215411855,32.63973032,206.91,206.87,4.818]
[1731215412072,32.63973032,206.91,206.87,11.11170569]
[1731215412269,32.63973032,206.95,206.89,4.818]
[1731215412470,32.63973032,206.95,206.88,6.29370569]
[1731215412471,32.63973032,206.95,206.91,4.818]
[1731215412668,32.63973032,206.93,206.92,11.11170569]
[1731215413059,32.63973032,206.93,206.92,4.818]
[1731215413257,32.63973032,206.95,206.92,4.818]
[1731215413671,32.63973032,206.93,206.8,4.818]
[1731215413961,32.63973032,206.91,206.82,4.818]
[1731215414155,6.0952,206.98,206.84,4.918]
[1731215414156,32.63973032,206.95,206.84,4.918]
[1731215414355,32.63973032,206.95,206.86,4.918]
[1731215414562,32.63973032,206.95,206.88,4.818]
[1731215414756,32.63973032,206.95,206.88,11.11170569]
[1731215414962,32.63973032,206.93,206.9,4.818]
[1731215415370,32.63973032,206.95,206.9,4.818]
[1731215415569,32.63973032,206.93,206.91,6.29370569]
[1731215415779,32.63973032,206.92,206.83,0.96628009]
[1731215416075,32.63973032,206.89,206.81,6.29370569]
[1731215416268,32.63973032,206.89,206.79,1.0]
[1731215416576,32.63973032,206.84,206.79,1.0]
[1731215416771,32.63973032,206.89,206.79,1.0]
[1731215416772,32.63973032,206.8,206.79,1.0]
[1731215417358,32.63973032,206.84,206.79,1.0]
[1731215417558,32.63973032,206.82,206.79,1.0]
[1731215417757,32.63973032,206.82,206.79,5.818]
[1731215417975,32.63973032,206.89,206.79,5.818]
[1731215417976,32.63973032,206.8,206.79,5.818]
[1731215418285,32.63973032,206.8,206.79,1.0]
[1731215418861,65.27946064,206.8,206.79,1.0]
[1731215419064,65.27946064,206.8,206.63,0.1]
[1731215419265,32.63973032,206.73,206.63,0.1]
[1731215419461,32.63973032,206.68,206.56,30.48287847]
[1731215419670,32.63973032,206.68,206.56,0.1]
[1731215420077,32.63973032,206.68,206.57,4.818]
[1731215420478,32.63973032,206.66,206.57,4.818]
[1731215420663,2.42471657,206.66,206.54,0.1]
[1731215420862,0.1,206.77,206.53,5.94512602]
[1731215421177,32.63973032,206.69,206.56,24.43775245]
[1731215421375,32.63973032,206.69,206.57,6.91269617]
[1731215421776,32.63973032,206.69,206.58,4.818]
[1731215422483,32.63973032,206.73,206.6,28.82323632]
[1731215422690,32.63973032,206.73,206.62,4.818]
[1731215423164,32.63973032,206.71,206.62,4.818]
[1731215423480,32.63973032,206.69,206.62,4.818]
[1731215423677,0.2,206.76,206.59,4.818]
[1731215423678,32.63973032,206.67,206.59,4.818]
[1731215424390,32.63973032,206.65,206.59,4.818]
[1731215424570,32.63973032,206.65,206.55,4.818]
[1731215425583,32.63973032,206.63,206.56,4.818]
[1731215425778,32.84642572,206.63,206.56,4.818]
[1731215427771,32.84642572,206.66,206.57,37.66442572]
[1731215427973,32.84642572,206.66,206.6,4.818]
[1731215428187,32.84642572,206.68,206.6,4.818]
[1731215428988,32.84642572,206.62,206.59,12.1012]
[1731215429191,32.84642572,206.63,206.6,4.818]
[1731215429485,32.84642572,206.65,206.6,4.818]
[1731215429686,32.72102572,206.63,206.6,4.818]
[1731215430068,32.72102572,206.63,206.55,4.818]
[1731215430680,32.84642572,206.64,206.57,4.818]
[1731215431292,0.1,206.75,206.57,4.818]
[1731215431293,32.84642572,206.66,206.62,4.818]
[1731215431469,32.84642572,206.64,206.63,4.818]
[1731215432299,32.84642572,206.64,206.56,4.818]
[1731215432594,32.84642572,206.61,206.56,4.818]
[1731215433193,32.84642572,206.58,206.42,4.818]
[1731215433407,54.78572572,206.6,206.42,4.818]
[1731215433408,32.84642572,206.5,206.42,4.818]
[1731215433697,32.84642572,206.5,206.41,32.84642572]
[1731215433698,32.84642572,206.52,206.46,4.818]